bitfinex/quotes_SOLUSD_20250222
["timestamp","ask_amount","ask_price","bid_price","bid_amount"]
[1740201238453,20.0,171.65,171.64,0.063]
[1740201238656,101.2,171.65,171.64,0.063]
[1740201239264,107.0258,171.65,171.64,0.063]
[1740201243972,111.2658,171.65,171.64,0.063]
[1740201245870,111.2658,171.65,171.63,0.0001]
[1740201246071,11.75079755,171.64,171.63,0.0001]
[1740201246274,92.95079755,171.64,171.63,0.0001]
[1740201246575,111.60044641,171.64,171.63,0.0001]
[1740201247557,30.40044641,171.64,171.63,0.0001]
[1740201248248,37.22644641,171.64,171.63,0.0001]
[1740201251178,20.0,171.62,171.61,0.0001]
[1740201251478,31.75079755,171.62,171.61,0.0001]
[1740201251982,31.75079755,171.62,171.6,0.0001]
[1740201252181,92.95079755,171.61,171.6,0.0001]
[1740201252484,100.31579755,171.61,171.6,0.0001]
[1740201255461,19.11579755,171.61,171.6,0.0001]
[1740201256582,20.0,171.59,171.58,0.063]
[1740201256777,35.99079755,171.59,171.58,0.063]
[1740201258284,56.38819755,171.59,171.52,0.063]
[1740201258479,11.75079755,171.58,171.52,0.063]
[1740201258779,11.75079755,171.57,171.52,0.063]
[1740201260365,17.57929755,171.57,171.52,0.063]
[1740201261667,5.8285,171.57,171.52,11.81379755]
[1740201262182,5.8285,171.57,171.53,6.1776]
[1740201263179,5.8285,171.57,171.53,17.92839755]
[1740201263360,5.8282,171.58,171.54,13.38249755]
[1740201264671,5.8275,171.6,171.56,11.81379755]
[1740201265383,87.0275,171.6,171.56,11.81379755]
[1740201265773,81.2,171.6,171.56,11.81379755]
[1740201265980,81.2,171.6,171.58,11.75079755]
[1740201266174,81.2,171.6,171.59,11.75079755]
[1740201268187,81.2,171.6,171.57,11.75079755]
[1740201269088,87.0275,171.6,171.56,0.063]
[1740201279875,4.24,171.59,171.56,0.063]
[1740201280383,5.8281,171.58,171.56,0.063]
[1740201282187,81.2,171.57,171.56,0.063]
[1740201282380,87.0285,171.57,171.56,0.063]
[1740201300088,5.8285,171.57,171.56,0.063]
[1740201300784,5.8281,171.58,171.56,0.063]
[1740201302517,17.57889755,171.58,171.56,0.063]
[1740201302693,32.14929755,171.58,171.52,0.063]
[1740201302898,81.2,171.57,171.52,0.063]
[1740201304008,20.4009,171.56,171.52,0.063]
[1740201305897,81.2,171.55,171.52,0.063]
[1740201306403,5.8295,171.54,171.52,0.063]
[1740201307512,87.0293,171.55,171.52,11.81379755]
[1740201311412,81.2,171.55,171.54,11.75079755]
[1740201311731,87.0292,171.55,171.54,11.75079755]
[1740201311913,5.8288,171.56,171.54,11.75079755]
[1740201313202,0.03,171.58,171.54,11.75079755]
[1740201313401,5.8581,171.58,171.54,11.75079755]
[1740201319740,5.8581,171.58,171.54,11.81379755]
[1740201321929,0.03,171.58,171.56,11.75079755]
[1740201325043,0.03,171.58,171.56,17.57949755]
[1740201327240,0.03,171.58,171.57,11.75079755]
[1740201327414,0.03,171.58,171.57,17.57929755]
[1740201327619,0.03,171.58,171.57,39.69608855]
[1740201328426,0.03,171.58,171.57,15.21793969]
[1740201329143,0.03,171.58,171.57,21.04643969]
[1740201329530,0.03,171.58,171.57,15.21793969]
[1740201329968,0.03,171.58,171.57,21.04643969]
[1740201330956,0.03,171.58,171.57,15.21793969]
[1740201331131,0.03,171.58,171.57,3.46714214]
[1740201332823,0.03,171.58,171.54,0.063]
[1740201333350,0.03,171.58,171.54,11.81379755]
[1740201339243,81.23,171.58,171.54,0.063]
[1740201339448,81.2,171.57,171.54,0.063]
[1740201340027,20.0,171.55,171.54,0.063]
[1740201341079,25.8292,171.55,171.54,0.063]
[1740201349160,25.8292,171.55,171.54,0.0001]
[1740201354865,5.8292,171.55,171.54,0.0001]
[1740201357340,5.8588,171.56,171.54,0.0001]
[1740201359579,87.0588,171.56,171.54,0.0001]
[1740201372878,11.75079755,171.55,171.54,0.0001]
[1740201374382,17.57999755,171.55,171.54,0.0001]
[1740201375582,5.8292,171.55,171.54,0.0001]
[1740201376665,87.0589,171.56,171.54,0.0001]
[1740201388902,81.23,171.56,171.54,0.0001]
[1740201389101,0.03,171.56,171.54,0.0001]
[1740201392275,5.8588,171.56,171.54,0.0001]
[1740201394592,11.75079755,171.55,171.54,0.0001]
[1740201395067,92.95079755,171.55,171.54,0.0001]
[1740201395900,98.77999755,171.55,171.54,0.0001]
[1740201397976,87.0292,171.55,171.54,0.0001]
[1740201408700,81.2,171.55,171.54,0.0001]
[1740201409412,87.0292,171.55,171.54,0.0001]
[1740201411607,87.0592,171.55,171.54,0.0001]
[1740201418926,5.8592,171.55,171.54,0.0001]
[1740201419525,0.03,171.55,171.54,0.0001]
[1740201426617,0.03,171.55,171.54,4.35245649]
[1740201427612,0.03,171.55,171.54,16.10325404]
[1740201427905,0.03,171.55,171.54,21.93275404]
[1740201429019,0.03,171.55,171.54,169.0855931]
[1740201429845,0.03,171.56,171.55,6.1667]
[1740201430142,0.03,171.56,171.55,19.49529755]
[1740201431106,0.03,171.56,171.55,25.32449755]
[1740201431522,0.03,171.56,171.55,33.15649125]
[1740201433509,0.03,171.56,171.55,51.80614011]
[1740201433720,0.03,171.58,171.57,21.22744886]
[1740201434024,0.03,171.58,171.57,39.14494641]
[1740201434510,0.03,171.58,171.57,40.14494641]
[1740201434936,0.03,171.6,171.58,19.64964886]
[1740201435140,0.03,171.6,171.58,101.14964886]
[1740201435323,0.03,171.6,171.59,11.75079755]
[1740201435933,0.03,171.6,171.59,17.57859755]
[1740201436130,0.03,171.6,171.59,21.05823476]
[1740201436304,0.03,171.6,171.59,25.41059125]
[1740201438131,0.03,171.6,171.59,45.06024011]
[1740201438855,0.03,171.6,171.59,41.5806029]
[1740201439713,0.03,171.6,171.59,124.95440263]
[1740201439937,0.03,171.7,171.61,2.0]
[1740201440127,0.03,171.7,171.66,11.75079755]
[1740201440435,0.03,171.7,171.68,11.75079755]
[1740201440637,0.03,171.7,171.69,11.75079755]
[1740201447841,0.03,171.7,171.69,36.22484641]
[1740201448042,0.03,171.7,171.69,119.37734641]
[1740201451025,0.03,171.7,171.69,111.90044641]
[1740201451437,0.03,171.7,171.69,117.72484641]
[1740201454154,0.03,171.7,171.69,111.90044641]
[1740201454351,0.03,171.7,171.66,11.75079755]
[1740201454552,0.03,171.7,171.65,11.75079755]
[1740201454772,0.03,171.7,171.64,93.25079755]
[1740201455254,0.03,171.7,171.64,11.75079755]
[1740201455547,20.3855,171.69,171.63,11.75079755]
[1740201455740,20.3855,171.69,171.62,93.25079755]
[1740201456827,20.3855,171.69,171.62,11.75079755]
[1740201456828,101.5855,171.69,171.62,11.75079755]
[1740201457032,81.2,171.68,171.61,11.75079755]
[1740201457267,81.2,171.68,171.62,11.75079755]
[1740201458461,5.8251,171.67,171.62,11.75079755]
[1740201460642,5.8251,171.67,171.64,11.75079755]
[1740201464139,5.8251,171.67,171.63,11.75079755]
[1740201464349,20.3879,171.67,171.61,11.81379755]
[1740201466361,32.13869755,171.67,171.61,0.063]
[1740201467037,20.3879,171.67,171.61,0.063]
[1740201469157,23.30186719,171.67,171.61,0.063]
[1740201469356,104.50186719,171.67,171.61,11.81379755]
[1740201469855,104.50186719,171.67,171.62,11.75079755]
[1740201473672,104.53186719,171.67,171.62,11.75079755]
[1740201479566,101.6179,171.67,171.62,11.75079755]
[1740201479783,87.0551,171.67,171.66,11.75079755]
[1740201479967,5.8551,171.67,171.66,11.75079755]
[1740201480175,0.03,171.67,171.66,11.75079755]
[1740201481867,0.03,171.67,171.64,11.75079755]
[1740201483355,0.03,171.67,171.66,11.75079755]
[1740201484670,0.03,171.67,171.66,117.72584641]
[1740201487361,0.03,171.67,171.66,118.72584641]
[1740201487894,0.03,171.67,171.66,119.72584641]
[1740201488678,0.03,171.67,171.66,123.17733432]
[1740201489085,0.03,171.67,171.66,129.30673432]
[1740201489279,0.03,171.67,171.66,133.61856398]
[1740201489479,0.03,171.7,171.69,22.0]
[1740201489773,0.03,171.7,171.69,53.27362175]
[1740201490674,0.03,171.7,171.69,106.10121195]
[1740201491005,0.03,171.7,171.69,110.41304161]
[1740201491813,0.03,171.7,171.69,66.86133932]
[1740201492506,0.03,171.7,171.69,151.86133932]
[1740201492712,0.03,171.7,171.69,150.98816398]
[1740201493405,0.03,171.7,171.69,148.98816398]
[1740201494979,0.03,171.7,171.69,145.53667607]
[1740201495409,0.03,171.7,171.69,141.22484641]
[1740201496218,0.03,171.7,171.69,137.72484641]
[1740201496392,0.03,171.7,171.69,111.90044641]
[1740201496916,0.03,171.7,171.67,93.25079755]
[1740201497099,0.03,171.7,171.66,11.75079755]
[1740201498691,0.03,171.7,171.67,18.35257947]
[1740201499396,0.03,171.7,171.63,65.97493693]
[1740201499594,18.38257947,171.7,171.63,18.35257947]
[1740201500016,0.03,171.7,171.63,18.35257947]
[1740201501087,0.03,171.7,171.64,18.35257947]
[1740201501313,5.8541,171.7,171.64,18.35257947]
[1740201501817,5.8541,171.7,171.61,18.41557947]
[1740201501818,24.84737947,171.69,171.61,18.41557947]
[1740201502108,106.04737947,171.69,171.61,18.41557947]
[1740201503005,106.04737947,171.69,171.62,18.35257947]
[1740201503208,20.0,171.65,171.62,18.35257947]
[1740201503418,20.0,171.64,171.61,0.063]
[1740201504409,99.55257947,171.67,171.61,0.063]
[1740201504590,81.2,171.67,171.62,18.35257947]
[1740201505315,5.8254,171.66,171.61,18.41557947]
[1740201505607,20.389,171.66,171.61,18.41557947]
[1740201506597,18.35257947,171.65,171.61,0.063]
[1740201506988,38.74157947,171.66,171.61,0.063]
[1740201507193,20.0,171.63,171.61,0.063]
[1740201507408,5.8268,171.62,171.61,0.063]
[1740201508417,20.0,171.63,171.61,0.063]
[1740201508720,25.8264,171.63,171.61,0.063]
[1740201508906,81.2,171.62,171.61,0.063]
[1740201510619,87.0268,171.62,171.61,0.063]
[1740201511119,101.5938,171.62,171.57,17.47857947]
[1740201517931,101.5938,171.62,171.54,5.8296]
[1740201517932,87.0268,171.62,171.59,18.35257947]
[1740201518714,87.0268,171.62,171.59,11.75642451]
[1740201519413,81.2,171.62,171.59,11.75642451]
[1740201519619,81.2,171.62,171.61,11.75642451]
[1740201519828,5.8258,171.65,171.61,11.75642451]
[1740201520022,5.8258,171.65,171.64,11.75642451]
[1740201520218,5.8247,171.68,171.64,11.75642451]
[1740201520409,5.8247,171.68,171.66,11.75642451]
[1740201521107,20.0,171.68,171.66,11.75642451]
[1740201521305,5.8541,171.7,171.66,11.75642451]
[1740201522721,5.8541,171.7,171.65,18.35569307]
[1740201524512,20.4143,171.7,171.65,18.35569307]
[1740201524846,20.4143,171.7,171.63,18.35569307]
[1740201525936,20.3866,171.68,171.63,18.35569307]
[1740201527835,20.3866,171.68,171.62,18.35569307]
[1740201528041,5.8247,171.68,171.66,18.35569307]
[1740201528620,5.8247,171.68,171.64,18.35569307]
[1740201528825,20.3866,171.68,171.64,18.35569307]
[1740201529945,20.0,171.67,171.64,18.35569307]
[1740201531666,5.8251,171.67,171.64,18.35569307]
[1740201531861,20.3879,171.67,171.62,18.35569307]
[1740201532265,20.3879,171.67,171.6,18.35569307]
[1740201532266,81.2,171.66,171.6,18.35569307]
[1740201532635,85.42,171.66,171.6,18.35569307]
[1740201533059,20.0,171.62,171.57,0.063]
[1740201533265,20.0,171.61,171.57,0.063]
[1740201533763,5.8275,171.6,171.57,18.41869307]
[1740201534146,25.8272,171.61,171.58,18.35569307]
[1740201535528,25.8272,171.61,171.6,18.35569307]
[1740201537738,25.8272,171.61,171.58,18.35569307]
[1740201538255,25.8272,171.61,171.57,0.063]
[1740201538628,58.75079307,171.61,171.57,0.063]
[1740201539665,20.0,171.58,171.57,0.063]
[1740201540762,25.8281,171.58,171.57,0.063]
[1740201544733,5.8281,171.58,171.57,0.063]
[1740201545644,87.0279,171.59,171.57,18.41869307]
[1740201546246,87.0279,171.59,171.58,18.35569307]
[1740201548245,5.8275,171.6,171.58,18.35569307]
[1740201549244,20.0,171.61,171.58,18.35569307]
[1740201549450,5.8268,171.62,171.58,18.35569307]
[1740201552071,38.74949307,171.62,171.57,0.063]
[1740201552556,81.2,171.61,171.57,0.063]
[1740201553057,20.0,171.58,171.57,0.063]
[1740201553241,20.0,171.58,171.57,0.0001]
[1740201553448,25.8281,171.58,171.57,0.0001]
[1740201553642,30.0481,171.58,171.57,0.0001]
[1740201557174,81.2,171.59,171.57,0.0001]
[1740201557175,95.797,171.62,171.57,18.38458581]
[1740201557399,95.797,171.62,171.58,18.38448581]
[1740201557750,81.23,171.62,171.58,18.38448581]
[1740201557955,5.8271,171.61,171.58,18.38448581]
[1740201559568,5.8271,171.61,171.59,18.38448581]
[1740201564291,5.8271,171.61,171.57,18.38458581]
[1740201564492,5.8271,171.61,171.57,0.0001]
[1740201564791,20.395,171.61,171.57,0.0001]
[1740201566890,20.425,171.61,171.57,0.0001]
[1740201567077,5.8571,171.61,171.57,18.38458581]
[1740201567275,0.03,171.61,171.57,18.38458581]
[1740201567587,5.8571,171.61,171.57,18.38458581]
[1740201568281,5.8571,171.61,171.59,18.38448581]
[1740201568474,0.03,171.61,171.59,18.38448581]
[1740201569489,0.03,171.61,171.57,18.38458581]
[1740201574780,0.03,171.61,171.59,18.38448581]
[1740201576580,0.03,171.61,171.59,11.75552308]
[1740201577992,0.03,171.61,171.6,18.64964886]
[1740201579199,0.03,171.61,171.6,24.47714886]
[1740201579590,0.03,171.61,171.6,78.75741426]
[1740201580101,0.03,171.61,171.6,31.73532194]
[1740201580285,0.03,171.61,171.6,30.86144886]
[1740201581403,0.03,171.61,171.6,34.32766919]
[1740201581605,0.03,171.61,171.6,36.20140783]
[1740201581985,0.03,171.61,171.6,40.53428]
[1740201582711,0.03,171.61,171.6,58.88843741]
[1740201583194,0.03,171.62,171.61,20.64964886]
[1740201583389,0.03,171.62,171.61,105.64964886]
[1740201584188,0.03,171.68,171.63,1.0]
[1740201584387,0.03,171.68,171.67,37.00380627]
[1740201584587,0.03,171.68,171.67,118.50380627]
[1740201585098,0.03,171.68,171.67,124.32890627]
[1740201585307,0.03,171.68,171.67,118.50380627]
[1740201592502,0.03,171.68,171.67,124.32890627]
[1740201593119,0.03,171.68,171.67,118.50380627]
[1740201595204,0.03,171.68,171.67,124.32890627]
[1740201595406,0.03,171.68,171.67,118.50380627]
[1740201595604,0.03,171.68,171.67,124.32890627]
[1740201598528,0.03,171.68,171.67,100.14964886]
[1740201598734,0.03,171.68,171.65,18.35415741]
[1740201600310,0.03,171.68,171.66,18.35415741]
[1740201601133,0.03,171.68,171.62,18.41715741]
[1740201602234,0.03,171.68,171.65,18.35415741]
[1740201604715,0.03,171.68,171.65,11.74771228]
[1740201608948,0.03,171.68,171.67,11.74771228]
[1740201609512,0.03,171.68,171.67,30.39736114]
[1740201610713,0.03,171.68,171.67,36.22246114]
[1740201610929,0.03,171.68,171.67,117.72246114]
[1740201615658,0.03,171.68,171.67,111.89736114]
[1740201615812,0.03,171.68,171.67,93.24771228]
[1740201616012,0.03,171.68,171.67,11.74771228]
[1740201616237,0.03,171.68,171.65,11.74771228]
[1740201617636,0.03,171.68,171.67,11.74771228]
[1740201622932,0.03,171.68,171.67,36.22246114]
[1740201628532,0.03,171.68,171.67,39.68992188]
[1740201632757,0.03,171.68,171.67,121.18992188]
[1740201656569,0.03,171.68,171.67,96.71517302]
[1740201660276,0.03,171.68,171.67,115.36482188]
[1740201660483,0.03,171.68,171.67,121.18992188]
[1740201663483,0.03,171.68,171.67,96.71517302]
[1740201664659,0.03,171.68,171.67,93.24771228]
[1740201668182,0.03,171.68,171.67,96.72775541]
[1740201668379,0.03,171.68,171.67,15.22775541]
[1740201670986,0.03,171.68,171.67,11.74771228]
[1740201671420,0.03,171.68,171.65,11.74771228]
[1740201671828,0.03,171.68,171.63,11.74771228]
[1740201673101,0.03,171.68,171.62,0.063]
[1740201673422,4.27,171.68,171.62,0.063]
[1740201674089,4.27,171.68,171.62,11.81071228]
[1740201674783,20.3879,171.67,171.62,11.81071228]
[1740201675698,20.3879,171.67,171.62,0.063]
[1740201677399,101.5879,171.67,171.62,0.063]
[1740201682804,101.5879,171.67,171.62,11.81071228]
[1740201690298,87.0251,171.67,171.64,11.74771228]
[1740201692623,87.0251,171.67,171.62,11.81071228]
[1740201693031,101.5879,171.67,171.62,11.81071228]
[1740201695636,101.6179,171.67,171.62,11.81071228]
[1740201699217,101.6179,171.67,171.62,0.063]
[1740201702031,20.0,171.63,171.62,0.063]
[1740201702223,11.74771228,171.64,171.62,0.063]
[1740201703334,81.2,171.65,171.57,0.0001]
[1740201703335,11.74771228,171.62,171.57,0.0001]
[1740201703639,81.2,171.61,171.57,0.0001]
[1740201704432,5.8275,171.6,171.57,0.0001]
[1740201704936,87.0272,171.61,171.58,11.74771228]
[1740201706831,5.8261,171.64,171.58,17.57571228]
[1740201707017,5.8261,171.64,171.6,11.74771228]
[1740201710540,5.8261,171.64,171.58,11.74771228]
[1740201711322,17.57381228,171.64,171.58,11.74771228]
[1740201711520,11.74771228,171.62,171.57,0.0001]
[1740201713834,20.395,171.61,171.57,0.0001]
[1740201715640,20.0,171.59,171.57,0.0001]
[1740201715823,5.8281,171.58,171.57,0.0001]
[1740201716023,87.0281,171.58,171.57,0.0001]
[1740201731668,81.2,171.58,171.57,0.0001]
[1740201736770,5.8568,171.62,171.57,0.0001]
[1740201737680,5.8568,171.62,171.58,11.74771228]
[1740201746383,5.8568,171.62,171.57,0.0001]
[1740201750092,0.03,171.62,171.58,11.74771228]
[1740201750398,0.03,171.62,171.6,11.74771228]
[1740201752011,0.03,171.62,171.6,17.57501228]
[1740201752298,0.03,171.62,171.6,11.74771228]
[1740201753778,0.03,171.62,171.58,18.32281228]
[1740201754001,0.03,171.62,171.57,0.0001]
[1740201755199,20.4238,171.62,171.57,0.0001]
[1740201757500,81.2,171.61,171.57,0.0001]
[1740201758812,81.2,171.61,171.58,11.74771228]
[1740201759599,81.2,171.61,171.6,11.74771228]
[1740201760178,0.03,171.62,171.6,11.74771228]
[1740201760382,0.03,171.62,171.6,30.39736114]
[1740201765287,0.03,171.62,171.6,30.46036114]
[1740201772119,0.03,171.62,171.6,0.063]
[1740201773506,81.2,171.61,171.57,0.0001]
[1740201775916,5.8275,171.6,171.57,0.0001]
[1740201778409,5.8281,171.58,171.57,0.0001]
[1740201788524,87.0281,171.58,171.57,0.0001]
[1740201788728,0.03,171.62,171.58,2.5324]
[1740201788932,0.03,171.62,171.61,11.74771228]
[1740201790432,0.03,171.62,171.61,30.39736114]
[1740201791513,0.03,171.62,171.61,11.74771228]
[1740201792033,0.03,171.67,171.62,0.4777065]
[1740201792217,0.03,171.67,171.63,11.74771228]
[1740201793731,0.03,171.67,171.65,11.74771228]
[1740201796130,81.23,171.67,171.65,11.74771228]
[1740201797434,87.0552,171.67,171.65,11.74771228]
[1740201800431,81.23,171.67,171.65,11.74771228]
[1740201802237,0.03,171.67,171.65,11.74771228]
[1740201818555,0.03,171.67,171.65,17.57341228]
[1740201822635,0.03,171.67,171.66,18.64964886]
[1740201824640,0.03,171.67,171.66,24.47504886]
[1740201831377,0.03,171.67,171.66,36.22276114]
[1740201835447,0.03,171.67,171.66,39.70592348]
[1740201836748,0.03,171.67,171.66,36.22276114]
[1740201840293,0.03,171.67,171.66,39.70418444]
[1740201841179,0.0001,171.67,171.66,40.57774856]
[1740201841554,0.0001,171.68,171.66,122.07774856]
[1740201841755,0.0001,171.68,171.67,30.39736114]
[1740201843373,0.0001,171.68,171.67,39.70388444]
[1740201843955,0.0001,171.68,171.67,40.57729436]
[1740201846595,0.0001,171.68,171.67,122.07729436]
[1740201846777,0.0001,171.68,171.67,121.20388444]
[1740201847290,0.12478043,171.71,171.7,20.0]
[1740201847476,8.043e-05,171.71,171.7,180.42691026]
[1740201847673,8.043e-05,171.73,171.71,19.64964886]
[1740201847872,8.043e-05,171.73,171.72,11.74771228]
[1740201848077,8.043e-05,171.74,171.72,111.89736114]
[1740201848472,8.043e-05,171.74,171.73,18.64964886]
[1740201848986,8.043e-05,171.74,171.73,24.47264886]
[1740201849299,8.043e-05,171.74,171.73,27.95407216]
[1740201850779,8.043e-05,171.74,171.73,30.82274782]
[1740201852793,8.043e-05,171.74,171.73,112.32274782]
[1740201855488,8.043e-05,171.74,171.73,108.84132452]
[1740201856475,8.043e-05,171.74,171.73,110.71446749]
[1740201860911,8.043e-05,171.74,171.73,110.77746749]
[1740201862122,8.043e-05,171.76,171.75,20.0]
[1740201862310,8.043e-05,171.76,171.75,131.89736114]
[1740201863926,8.043e-05,171.76,171.75,132.89736114]
[1740201864291,8.043e-05,171.76,171.75,138.71976114]
[1740201864792,8.043e-05,171.76,171.75,142.93976114]
[1740201865108,8.043e-05,171.76,171.75,143.93976114]
[1740201866711,8.043e-05,171.76,171.75,147.39621416]
[1740201870003,8.043e-05,171.76,171.75,146.39621416]
[1740201871426,8.043e-05,171.76,171.75,141.17621416]
[1740201871619,8.043e-05,171.76,171.75,137.71976114]
[1740201874199,8.043e-05,171.76,171.75,138.71976114]
[1740201874889,8.043e-05,171.76,171.75,139.71976114]
[1740201876295,8.043e-05,171.76,171.75,143.18173575]
[1740201879399,8.043e-05,171.76,171.75,146.68173575]
[1740201882519,8.043e-05,171.76,171.75,201.48128487]
[1740201889226,8.043e-05,171.78,171.77,2.0]
[1740201889399,8.043e-05,171.78,171.77,80.26096619]
[1740201889820,86.69768043,171.89,171.81,20.0]
[1740201890011,86.69768043,171.89,171.88,11.74771228]
[1740201896012,86.72768043,171.89,171.88,11.74771228]
[1740201902538,81.23,171.89,171.88,11.74771228]
[1740201903040,0.03,171.89,171.88,11.74771228]
[1740201904331,0.03,171.89,171.88,36.21536114]
[1740201905338,0.03,171.89,171.88,164.70621026]
[1740201906137,0.03,171.89,171.88,165.70621026]
[1740201906453,0.03,171.92,171.91,1.0]
[1740201906748,0.03,171.92,171.91,113.89736114]
[1740201907427,0.03,171.92,171.91,111.89736114]
[1740201907632,0.03,171.92,171.91,115.35178973]
[1740201909251,0.03,171.92,171.91,111.89736114]
[1740201910133,0.03,171.92,171.91,117.71426114]
[1740201912119,0.03,171.92,171.91,118.71426114]
[1740201912543,0.03,171.92,171.91,119.71426114]
[1740201917955,0.03,171.92,171.91,123.21426114]
[1740201919850,0.03,171.92,171.91,111.46654886]
[1740201920034,0.03,171.92,171.91,123.21426114]
[1740201925231,0.03,171.92,171.91,127.51011976]
[1740201925931,0.03,171.92,171.91,130.94685707]
[1740201934753,0.0001,171.92,171.91,130.94685707]
[1740201935151,0.0001,171.92,171.91,148.47685707]
[1740201935352,0.0001,171.92,171.91,130.94685707]
[1740201937668,0.0001,171.94,171.93,2.0]
[1740201937876,0.0001,171.94,171.93,169.48015685]
[1740201938171,0.0001,171.94,171.93,168.60821026]
[1740201938352,0.0001,171.94,171.93,109.86964886]
[1740201938551,0.0001,171.94,171.93,121.61736114]
[1740201939167,0.0001,171.94,171.93,130.87039845]
[1740201939872,0.0001,171.94,171.93,177.86124757]
[1740201940069,0.0001,171.94,171.93,182.15710619]
[1740201942668,1.6262,172.03,171.98,18.64964886]
[1740201942875,1.6262,172.03,172.02,11.74771228]
[1740201943177,1.6262,172.03,172.02,30.39736114]
[1740201944363,1.6262,172.03,172.02,36.21056114]
[1740201946492,6.3086,172.05,172.03,18.64964886]
[1740201946653,6.3086,172.05,172.04,11.74771228]
[1740201947785,1.6593,172.07,172.05,18.64964886]
[1740201947958,1.6593,172.07,172.06,11.74771228]
[1740201948374,0.03,172.07,172.06,30.39736114]
[1740201948675,0.03,172.07,172.06,158.88821026]
[1740201949180,0.03,172.07,172.06,164.70011026]
[1740201951186,0.03,172.07,172.06,169.00695762]
[1740201952263,0.03,172.07,172.06,172.45225684]
[1740201954384,0.03,172.07,172.06,175.43148169]
[1740201955282,0.03,172.07,172.06,171.98618247]
[1740201957174,0.03,172.07,172.06,114.87658599]
[1740201957483,0.03,172.07,172.06,111.89736114]
[1740201957688,0.03,172.07,172.06,117.70926114]
[1740201958065,0.03,172.07,172.06,111.89736114]
[1740201959278,0.03,172.07,172.06,117.70926114]
[1740201961497,0.03,172.07,172.06,105.96154886]
[1740201961788,0.03,172.07,172.06,117.70926114]
[1740201964290,0.03,172.07,172.06,11.74771228]
[1740201965379,0.03,172.07,172.05,11.74771228]
[1740201968393,0.03,172.07,172.04,11.74771228]
[1740201968593,1.5566,172.06,172.02,11.74771228]
[1740201968977,5.8122,172.05,172.02,11.74771228]
[1740201969176,5.8122,172.05,172.04,11.74771228]
[1740201970504,1.5566,172.06,172.04,11.74771228]
[1740201970687,1.5566,172.06,172.05,11.74771228]
[1740201970878,7.3685,172.06,172.04,11.74771228]
[1740201972090,7.3685,172.06,172.03,11.74771228]
[1740201972276,7.3685,172.06,172.0,18.64964886]
[1740201972476,7.3685,172.06,172.02,11.74771228]
[1740201973806,7.3685,172.06,172.0,18.64964886]
[1740201973807,28.0664,172.06,172.01,11.74771228]
[1740201975190,81.2,172.05,172.0,11.74771228]
[1740201975397,81.2,172.05,171.99,11.74771228]
[1740201975792,81.2,172.05,172.0,11.74771228]
[1740201977102,5.8126,172.04,172.0,11.74771228]
[1740201977606,5.8126,172.04,172.01,11.74771228]
[1740201978304,5.8126,172.04,172.0,11.74771228]
[1740201978701,5.8126,172.04,172.01,11.74771228]
[1740201979409,5.8126,172.04,171.95,18.64964886]
[1740201979410,87.0123,172.05,172.03,11.74771228]
[1740201979611,87.0123,172.05,172.04,11.74771228]
[1740201979802,7.7247,172.06,172.04,11.74771228]
[1740201980110,7.3685,172.06,172.04,11.74771228]
[1740201980409,7.3685,172.06,172.03,11.74771228]
[1740201981311,21.8983,172.06,171.96,87.3151]
[1740201981628,81.2,172.05,172.0,11.74771228]
[1740201981789,81.2,172.04,172.01,11.74771228]
[1740201982512,5.8129,172.03,172.01,11.74771228]
[1740201983304,5.8129,172.03,172.0,11.74771228]
[1740201984185,5.8129,172.03,171.99,11.74771228]
[1740201985312,20.3452,172.03,171.97,11.74771228]
[1740201985507,20.3452,172.03,171.98,11.74771228]
[1740201985720,20.3452,172.03,171.99,11.74771228]
[1740201986021,81.2,172.02,171.99,11.74771228]